lending/lending_fUSD_20250429
["ID","MTS","AMOUNT","RATE_DAILY","PERIOD"]
[359287675,1745893841002,-2000.0,0.00032205,15]
[359287677,1745893841010,-944.0,0.00032325,2]
[359287678,1745893841020,-150.0,0.00032326,7]
[359287680,1745893841029,-735.84,0.00032328,2]
[359287682,1745893841039,-512.93,0.00032328,2]
[359287684,1745893841048,-522.5806387,0.0003239,5]
[359287686,1745893841058,-500.79231643,0.0003239,5]
[359287688,1745893841067,-150.0,0.00032444,2]
[359287690,1745893841077,-735.84,0.00032602,2]
[359287691,1745893841086,-512.93,0.00032602,2]
[359287693,1745893841096,-362.50477196,0.00032665,15]
[359287695,1745893841105,-150.0,0.00032828,2]
[359287697,1745893841115,-351.59,0.00032828,2]
[359287699,1745893841124,-450.92,0.00032828,2]
[359287701,1745893841134,-735.84,0.00032876,2]
[359287703,1745893841145,-512.93,0.00032876,2]
[359287705,1745893841155,-683.98,0.00032877,2]
[359287707,1745893841164,-150.0,0.00032877,2]
[359287708,1745893841173,-244.69281424,0.00032877,2]
[359287710,1745893841183,-207.4,0.0003291,2]
[359287712,1745893841193,-151.0,0.0003291,2]
[359287714,1745893841202,-220.0,0.00032959,5]
[359287716,1745893841211,-4608.22380699,0.00032969,11]
[359287718,1745893841220,-4559.54575141,0.00033,2]
[359287720,1745893841229,-213.0,0.00033,2]
[359287722,1745893841238,-216.71574535,0.000331,2]
[359287723,1745893841248,-268.81,0.0003314,2]
[359287725,1745893841257,-735.84,0.0003315,2]
[359287727,1745893841268,-512.93,0.0003315,2]
[359287729,1745893841277,-339.5,0.00033151,2]
[359287731,1745893841286,-300.0,0.00033151,2]
[359287733,1745893841295,-150.0,0.00033151,2]
[359287735,1745893841305,-824.64,0.00033165,2]
[359287737,1745893841314,-150.0,0.00033165,2]
[359287739,1745893841323,-154.91898603,0.00033166,2]
[359287740,1745893841332,-154.13,0.00033234,2]
[359287742,1745893841342,-64390.4160632,0.0003328,2]
[359287744,1745893841351,-2644.40323084,0.00033302,2]
[359287746,1745893841360,-500.0,0.00033373,5]
[359287748,1745893841369,-500.0,0.00033373,2]
[359287750,1745893841378,-500.0,0.00033373,5]
[359287752,1745893841387,-6307.25005855,0.0003339,2]
[359287754,1745893841404,-29917.12361948,0.0003339,2]
[359287756,1745893841415,-60361.25041677,0.0003339,2]
[359287758,1745893841426,-249.3221583,0.0003339,2]
[359287760,1745893841437,-13202.33988251,0.000334,2]
[359287762,1745893841447,-2000.0,0.000334,2]
[359287765,1745893841470,-3865.00632134,0.000334,2]
[359287767,1745893841481,-1493.27209043,0.000334,2]
[359287769,1745893841492,-3692.45784201,0.000334,2]
[359287771,1745893841503,-8261.93562539,0.000334,2]
[359287783,1745893841627,470.0,0.00038356,30]
[359287794,1745893841738,470.0,0.00038356,30]
[359287806,1745893841852,470.0,0.00038356,30]
[359287810,1745893841894,470.0,0.00038356,30]
[359287846,1745893842509,3957.26,0.00038356,30]
[359287898,1745893842948,-319.2129993,0.00025433,2]
[359287900,1745893842957,-2189.95623278,0.000334,2]
[359287905,1745893843001,-1679.91962656,0.000334,2]
[359287920,1745893843132,361.92779095,0.00038356,30]
[359287935,1745893843254,470.0,0.00038356,30]
[359287984,1745893843684,470.0,0.00038356,30]
[359288058,1745893844383,470.0,0.00038356,30]
[359288162,1745893845393,300.0,0.00038356,30]
[359288184,1745893845604,596.07,0.00038356,30]
[359288185,1745893845729,-901.84,0.00032877,2]
[359288186,1745893845739,-3089.7356376,0.000334,2]
[359288187,1745893845752,-5209.09888455,0.000334,2]
[359288188,1745893845764,-5415.68958026,0.000334,2]
[359288189,1745893845776,-46592.20210358,0.000334,2]
[359288190,1745893845787,-16949.12435452,0.000334,2]
[359288191,1745893845849,-942.0,0.000334,2]
[359288192,1745893845887,470.0,0.00038356,30]
[359288193,1745893845904,-8796.95412139,0.000334,2]
[359288194,1745893845919,-13123.22704644,0.000334,2]
[359288195,1745893845943,-1656.90474624,0.000334,2]
[359288197,1745893845955,-2667.84539389,0.000334,2]
[359288200,1745893845966,-889.04999999,0.000334,2]
[359288202,1745893845978,-336.88097855,0.000334,2]
[359288212,1745893846063,-293.95,0.000334,2]
[359288241,1745893846433,470.0,0.00038356,30]
[359288254,1745893846556,470.0,0.00038356,30]
[359288259,1745893846591,470.0,0.00038356,30]
[359288306,1745893847651,607.29,0.00038356,30]
[359288307,1745893847688,648.33,0.00038356,30]
[359288308,1745893847974,470.0,0.00038356,30]
[359288309,1745893848296,470.0,0.00038356,30]
[359288310,1745893848459,289.10877654,0.00038356,30]
[359288311,1745893848742,470.0,0.00038356,30]
[359288312,1745893849256,479.67,0.00038356,30]
[359288313,1745893851187,470.0,0.00038356,30]
[359288314,1745893851539,470.0,0.00038356,30]
[359288315,1745893851876,470.0,0.00038356,30]
[359288316,1745893852265,470.0,0.00038356,30]
[359288317,1745893852595,470.0,0.00038356,30]
[359288318,1745893852633,470.0,0.00038356,30]
[359288319,1745893852823,1520.7,0.00038356,30]
[359288320,1745893853491,3213.04,0.00038356,30]
[359288321,1745893854242,470.0,0.00038356,30]
[359288322,1745893855705,470.0,0.00038356,30]
[359288323,1745893855959,470.0,0.00038356,30]
[359288324,1745893856003,470.0,0.00038356,30]
[359288325,1745893856858,470.0,0.00038356,30]
[359288326,1745893858479,470.0,0.00038356,30]
[359288327,1745893858751,541.31,0.00038356,30]
[359288328,1745893859186,500.0,0.00038356,30]
[359288329,1745893859794,470.0,0.00038356,30]
[359288330,1745893859935,470.0,0.00038356,30]
[359288331,1745893860484,470.0,0.00038356,30]
[359288332,1745893860528,273.80774847,0.00038356,30]
[359288333,1745893861195,523.43,0.00038356,30]
[359288334,1745893861661,584.91,0.00038356,30]
[359288335,1745893862046,1228.56,0.00038356,30]
[359288336,1745893862423,470.0,0.00038356,30]
[359288337,1745893862467,470.0,0.00038356,30]
[359288338,1745893866558,470.0,0.00038356,30]
[359288339,1745893867040,470.0,0.00038356,30]
[359288340,1745893868109,470.0,0.00038356,30]
[359288341,1745893868261,470.0,0.00038356,30]
[359288342,1745893868418,470.0,0.00038356,30]
[359288343,1745893868458,470.0,0.00038356,30]
[359288344,1745893868632,470.0,0.00038356,30]
[359288345,1745893868897,470.0,0.00038356,30]
[359288346,1745893870540,470.0,0.00038356,30]
[359288347,1745893870577,470.0,0.00038356,30]
[359288348,1745893872067,640.21,0.00038356,30]
[359288349,1745893875495,11038.76,0.00038356,30]
[359288350,1745893876431,560.84,0.00038356,30]
[359288351,1745893876995,470.0,0.00038356,30]
[359288352,1745893877350,707.31,0.00038356,30]
[359288353,1745893877841,470.0,0.00038356,30]
[359288354,1745893879191,470.0,0.00038356,30]
[359288355,1745893879242,470.0,0.00038356,30]
[359288356,1745893879734,470.0,0.00038356,30]
[359288357,1745893880576,514.27,0.00038356,30]
[359288358,1745893881182,470.0,0.00038356,30]
[359288359,1745893882381,470.0,0.00038356,30]
[359288360,1745893882873,276.08447691,0.00038356,30]
[359288361,1745893883490,470.0,0.00038356,30]
[359288362,1745893884128,470.0,0.00038356,30]
[359288363,1745893884182,470.0,0.00038356,30]
[359288364,1745893884252,470.0,0.00038356,30]
[359288365,1745893884845,470.0,0.00038356,30]
[359288366,1745893885228,1226.34,0.00038356,30]
[359288367,1745893885273,470.0,0.00038356,30]
[359288368,1745893886571,470.0,0.00038356,30]
[359288369,1745893886606,470.0,0.00038356,30]
[359288370,1745893886718,470.0,0.00038356,30]
[359288371,1745893888504,470.0,0.00038356,30]
[359288372,1745893888936,470.0,0.00038356,30]
[359288373,1745893888972,470.0,0.00038356,30]
[359288374,1745893889083,470.0,0.00038356,30]
[359288375,1745893889167,470.0,0.00038356,30]
[359288376,1745893889852,470.0,0.00038356,30]
[359288377,1745893890424,470.0,0.00038356,30]
[359288378,1745893890695,470.0,0.00038356,30]
[359288379,1745893892946,470.0,0.00038356,30]
[359288380,1745893893554,1633.05,0.00038356,30]
[359288381,1745893893767,470.0,0.00038356,30]
[359288382,1745893893867,470.0,0.00038356,30]
[359288383,1745893894357,470.0,0.00038356,30]
[359288384,1745893895656,470.0,0.00038356,30]
[359288385,1745893896915,470.0,0.00038356,30]
[359288386,1745893897797,470.0,0.00038356,30]
[359288387,1745893897987,470.0,0.00038356,30]
[359288388,1745893898387,470.0,0.00038356,30]
[359288389,1745893898806,619.82,0.00038356,30]
[359288390,1745893899931,985.31,0.00038356,30]
[359288391,1745893900509,470.0,0.00038356,30]
[359288392,1745893900792,470.0,0.00038356,30]
[359288393,1745893902516,470.0,0.00038356,30]
[359288394,1745893904165,585.03,0.00038356,30]
[359288395,1745893905767,470.0,0.00038356,30]
[359288396,1745893906061,470.0,0.00038356,30]
[359288397,1745893906366,607.88,0.00038356,30]
[359288398,1745893907837,470.0,0.00038356,30]
[359288399,1745893907915,470.0,0.00038356,30]
[359288400,1745893908594,470.0,0.00038356,30]
[359288401,1745893909730,470.0,0.00038356,30]
[359288402,1745893909775,250.0,0.00038356,30]
[359288403,1745893910969,764.35,0.00038356,30]
[359288404,1745893912344,470.0,0.00038356,30]
[359288405,1745893912400,470.0,0.00038356,30]
[359288406,1745893913008,470.0,0.00038356,30]
[359288407,1745893913175,470.0,0.00038356,30]
[359288408,1745893913745,470.0,0.00038356,30]
[359288409,1745893914348,925.16,0.00038356,30]
[359288410,1745893915343,293.13076229,0.00038356,30]
[359288411,1745893915568,470.0,0.00038356,30]
[359288412,1745893916355,470.0,0.00038356,30]
[359288413,1745893916751,913.03,0.00038356,30]
[359288414,1745893917192,470.0,0.00038356,30]
[359288415,1745893917232,2723.09,0.00038356,30]
[359288416,1745893917616,300.0,0.00038356,30]
[359288417,1745893919524,470.0,0.00038356,30]
[359288418,1745893919634,5346.37,0.00038,30]
[359288419,1745893921996,566.88,0.00038356,30]
[359288420,1745893922268,200.0,0.00030694,117]
[359288421,1745893922405,200.0,0.00027954,117]
[359288422,1745893922477,470.0,0.00038356,30]
[359288423,1745893922598,527.25,0.00038356,30]
[359288424,1745893922840,470.0,0.00038356,30]
[359288425,1745893923788,531.14,0.00038356,30]
[359288426,1745893924102,470.0,0.00038356,30]
[359288427,1745893924142,470.0,0.00038356,30]
[359288428,1745893924934,470.0,0.00038356,30]
[359288429,1745893925549,484.02516769,0.00038356,30]
[359288430,1745893926006,470.0,0.00038356,30]
[359288431,1745893926794,470.0,0.00038356,30]
[359288432,1745893927120,470.0,0.00038356,30]
[359288433,1745893928631,470.0,0.00038356,30]
[359288434,1745893928882,485.43,0.00038356,30]
[359288435,1745893930233,470.0,0.00038356,30]
[359288436,1745893930792,483.22024009,0.00038356,30]
[359288437,1745893931032,470.0,0.00038356,30]
[359288438,1745893932374,3290.0,0.00038356,30]
[359288439,1745893932461,470.0,0.00038356,30]
[359288441,1745893933734,151.90316368,0.00030357,60]
[359288442,1745893934241,470.0,0.00038356,30]
[359288443,1745893934853,470.0,0.00038356,30]
[359288444,1745893934949,514.84,0.00038356,30]
[359288445,1745893935197,470.0,0.00038356,30]
[359288446,1745893936282,470.0,0.00038356,30]
[359288447,1745893936432,470.0,0.00038356,30]
[359288448,1745893936550,470.0,0.00038356,30]
[359288449,1745893937051,548.65,0.00038356,30]
[359288450,1745893937917,470.0,0.00038356,30]
[359288451,1745893938284,906.19,0.00038356,30]
[359288452,1745893938837,470.0,0.00038356,30]
[359288453,1745893940456,470.0,0.00038356,30]
[359288454,1745893940897,470.0,0.00038356,30]
[359288455,1745893941341,842.57,0.00038356,30]
[359288456,1745893942164,470.0,0.00038356,30]
[359288457,1745893942276,470.0,0.00038356,30]
[359288458,1745893944833,470.0,0.00038356,30]
[359288459,1745893944943,470.0,0.00038356,30]
[359288460,1745893945760,470.0,0.00038356,30]
[359288461,1745893945933,493.46,0.00038356,30]
[359288462,1745893946076,592.98,0.00038356,30]
[359288463,1745893946212,470.0,0.00038356,30]
[359288464,1745893946294,470.0,0.00038356,30]
[359288465,1745893946538,470.0,0.00038356,30]
[359288466,1745893946578,470.0,0.00038356,30]
[359288467,1745893947312,505.45,0.00038356,30]
[359288468,1745893947354,653.77,0.00038356,30]
[359288469,1745893948662,470.0,0.00038356,30]
[359288470,1745893948806,151.90316368,0.00030847,60]
[359288471,1745893948889,470.0,0.00038356,30]
[359288472,1745893949341,557.86,0.00038356,30]
[359288473,1745893949650,752.13,0.00038356,30]
[359288474,1745893949893,470.0,0.00038356,30]
[359288475,1745893950745,470.0,0.00038356,30]
[359288476,1745893951296,470.0,0.00038356,30]
[359288477,1745893951510,470.0,0.00038356,30]
[359288478,1745893951658,470.0,0.00038356,30]
[359288479,1745893952611,470.0,0.00038356,30]
[359288480,1745893952715,470.0,0.00038356,30]
[359288481,1745893953647,470.0,0.00038356,30]
[359288482,1745893953781,151.90316368,0.00031338,60]
[359288483,1745893954586,173.5,0.00026728,120]
[359288484,1745893954635,490.28,0.00038356,30]
[359288485,1745893955168,498.02,0.00038356,30]
[359288486,1745893955547,470.0,0.00038356,30]
[359288487,1745893956150,470.0,0.00038356,30]
[359288488,1745893956793,470.0,0.00038356,30]
[359288489,1745893957140,1524.03,0.00038356,30]
[359288490,1745893957612,547.66,0.00038356,30]
[359288491,1745893957673,470.0,0.00038356,30]
[359288492,1745893958995,1841.41,0.00038356,30]
[359288493,1745893959964,491.56,0.00038356,30]
[359288494,1745893960521,510.27,0.00038356,30]
[359288495,1745893961741,684.46,0.00038356,30]
[359288496,1745893961794,470.0,0.00038356,30]
[359288497,1745893962358,470.0,0.00038356,30]
[359288498,1745893962602,470.0,0.00038356,30]
[359288499,1745893962857,470.0,0.00038356,30]
[359288500,1745893963728,151.90316368,0.00031828,60]
[359288501,1745893964500,470.0,0.00038356,30]
[359288502,1745893964553,470.0,0.00038356,30]
[359288503,1745893965812,470.0,0.00038356,30]
[359288504,1745893966023,939.51,0.00038356,30]
[359288505,1745893966463,470.0,0.00038356,30]
[359288506,1745893968782,151.90316368,0.00032319,60]
[359288507,1745893968855,470.0,0.00038356,30]
[359288508,1745893969426,669.92,0.00038356,30]
[359288509,1745893970183,470.0,0.00038356,30]
[359288510,1745893970603,172.79117834,0.00038356,30]
[359288511,1745893970718,470.0,0.00038356,30]
[359288512,1745893971500,470.0,0.00038356,30]
[359288513,1745893971536,470.0,0.00038356,30]
[359288514,1745893972700,2332.86,0.00038356,30]
[359288515,1745893974396,868.58,0.00038356,30]
[359288516,1745893974704,470.0,0.00038356,30]
[359288517,1745893974770,470.0,0.00038356,30]
[359288518,1745893974902,679.93,0.00038356,30]
[359288519,1745893975191,470.0,0.00038356,30]
[359288520,1745893975244,470.0,0.00038356,30]
[359288521,1745893975758,470.0,0.00038356,30]
[359288522,1745893977424,470.0,0.00038356,30]
[359288523,1745893977701,546.24,0.00038356,30]
[359288524,1745893977756,470.0,0.00038356,30]
[359288525,1745893977916,772.13,0.00038356,30]
[359288526,1745893978392,618.17,0.00038356,30]
[359288527,1745893978668,470.0,0.00038356,30]
[359288528,1745893978745,151.90316368,0.00032809,60]
[359288529,1745893980042,488.48,0.00038356,30]
[359288530,1745893980676,588.96,0.00038356,30]
[359288531,1745893981986,470.0,0.00038356,30]
[359288532,1745893982283,470.0,0.00038356,30]
[359288533,1745893983761,151.90316368,0.000333,60]
[359288534,1745893984400,470.0,0.00038356,30]
[359288535,1745893984506,470.0,0.00038356,30]
[359288536,1745893984610,470.0,0.00038356,30]
[359288537,1745893984993,530.62,0.00038356,30]
[359288538,1745893985653,557.57,0.00038356,30]
[359288539,1745893987158,470.0,0.00038356,30]
[359288540,1745893987836,470.0,0.00038356,30]
[359288541,1745893989319,470.0,0.00038356,30]
[359288542,1745893990173,2528.24,0.00038356,30]
[359288543,1745893991876,1061.04,0.00038356,30]
[359288544,1745893992759,470.0,0.00038356,30]
[359288545,1745893992906,470.0,0.00038356,30]
[359288546,1745893992972,848.1,0.00038356,30]
[359288547,1745893995958,470.0,0.00038356,30]
[359288548,1745893996500,470.0,0.00038356,30]
[359288549,1745893997248,470.0,0.00038356,30]
[359288550,1745893997908,470.0,0.00038356,30]
[359288551,1745893998461,470.0,0.00038356,30]
[359288552,1745893999062,470.0,0.00038356,30]
[359288553,1745893999380,470.0,0.00038356,30]
[359288554,1745894000079,470.0,0.00038356,30]
[359288555,1745894000639,470.0,0.00038356,30]
[359288556,1745894001807,470.0,0.00038356,30]
[359288557,1745894001966,547.93,0.00038356,30]
[359288558,1745894001999,470.0,0.00038356,30]
[359288559,1745894002454,470.0,0.00038356,30]
[359288560,1745894002685,470.0,0.00038356,30]
[359288561,1745894002988,470.0,0.00038356,30]
[359288562,1745894003489,470.0,0.00038356,30]
[359288563,1745894003524,605.15,0.00038356,30]
[359288564,1745894003877,470.0,0.00038356,30]
[359288565,1745894005946,470.0,0.00038356,30]
[359288566,1745894006514,470.0,0.00038356,30]
[359288567,1745894007197,580.95,0.00038356,30]
[359288568,1745894007555,500.0,0.00038356,30]
[359288569,1745894007772,470.0,0.00038356,30]
[359288570,1745894007969,470.0,0.00038356,30]
[359288571,1745894009146,1437.9,0.00038356,30]
[359288572,1745894009628,235.40190622,0.00038356,30]
[359288573,1745894009897,470.0,0.00038356,30]
[359288574,1745894010921,470.0,0.00038356,30]
[359288575,1745894011875,470.0,0.00038356,30]
[359288576,1745894012165,470.0,0.00038356,30]
[359288577,1745894012340,470.0,0.00038356,30]
[359288578,1745894013452,470.0,0.00038356,30]
[359288579,1745894013747,195.81005954,0.00038356,30]
[359288580,1745894013958,470.0,0.00038356,30]
[359288581,1745894014209,470.0,0.00038356,30]
[359288582,1745894014333,470.0,0.00038356,30]
[359288583,1745894014370,508.85,0.00038356,30]
[359288584,1745894015335,470.0,0.00038356,30]
[359288585,1745894015515,470.0,0.00038356,30]
[359288586,1745894016606,599.59,0.00038356,30]
[359288587,1745894016877,470.0,0.00038356,30]
[359288588,1745894017139,879.37,0.00038356,30]
[359288589,1745894017177,470.0,0.00038356,30]
[359288590,1745894019336,470.0,0.00038356,30]
[359288591,1745894019495,558.86,0.00038356,30]
[359288592,1745894020511,470.0,0.00038356,30]
[359288593,1745894021244,470.0,0.00038356,30]
[359288594,1745894021620,470.1013043,0.00038356,30]
[359288595,1745894024203,470.0,0.00038356,30]
[359288596,1745894024514,494.91,0.00038356,30]
[359288597,1745894024632,855.42,0.00038356,30]
[359288598,1745894025361,470.0,0.00038356,30]
[359288599,1745894025534,470.0,0.00038356,30]
[359288600,1745894025570,470.0,0.00038356,30]
[359288601,1745894026719,470.0,0.00038356,30]
[359288602,1745894027307,470.0,0.00038356,30]
[359288603,1745894027608,470.0,0.00038356,30]
[359288604,1745894028858,510.732113,0.00038356,30]
[359288605,1745894029141,765.03,0.00038356,30]
[359288606,1745894029185,470.0,0.00038356,30]
[359288607,1745894029266,221.55264375,0.00038356,30]
[359288608,1745894030447,470.0,0.00038356,30]
[359288609,1745894031119,470.0,0.00038356,30]
[359288610,1745894031879,470.0,0.00038356,30]
[359288611,1745894032319,470.0,0.00038356,30]
[359288612,1745894032669,470.0,0.00038356,30]
[359288613,1745894033056,470.0,0.00038356,30]
[359288614,1745894035654,470.0,0.00038356,30]
[359288615,1745894036302,470.0,0.00038356,30]
[359288616,1745894036394,488.73,0.00038356,30]
[359288617,1745894036622,672.36,0.00038356,30]
[359288618,1745894038306,470.0,0.00038356,30]
[359288619,1745894039082,527.87,0.00038356,30]
[359288620,1745894039334,470.0,0.00038356,30]
[359288621,1745894039570,470.0,0.00038356,30]
[359288622,1745894039715,470.0,0.00038356,30]
[359288623,1745894040854,470.0,0.00038356,30]
[359288624,1745894041093,500.26,0.00038356,30]
[359288625,1745894042043,470.0,0.00038356,30]
[359288626,1745894042098,470.0,0.00038356,30]
[359288627,1745894045212,484.29,0.00038356,30]
[359288628,1745894045272,755.13,0.00038356,30]
[359288629,1745894045660,470.0,0.00038356,30]
[359288630,1745894046208,173.83835421,0.00038356,30]
[359288631,1745894047372,987.44,0.00038356,30]
[359288632,1745894047601,470.0,0.00038356,30]
[359288633,1745894048983,470.0,0.00038356,30]
[359288634,1745894049259,470.0,0.00038356,30]
[359288635,1745894049872,470.0,0.00038356,30]
[359288636,1745894050345,470.0,0.00038356,30]
[359288637,1745894050467,618.71,0.00038356,30]
[359288638,1745894050732,470.0,0.00038356,30]
[359288639,1745894053834,470.0,0.00038356,30]
[359288640,1745894054183,470.0,0.00038356,30]
[359288641,1745894054440,470.0,0.00038356,30]
[359288642,1745894054483,470.0,0.00038356,30]
[359288643,1745894054640,470.0,0.00038356,30]
[359288644,1745894055057,470.0,0.00038356,30]
[359288645,1745894055153,470.0,0.00038356,30]
[359288646,1745894055263,470.0,0.00038356,30]
[359288647,1745894055922,470.0,0.00038356,30]
[359288648,1745894056363,470.0,0.00038356,30]
[359288649,1745894057061,470.0,0.00038356,30]
[359288650,1745894058667,38462.41,0.00038356,30]
[359288651,1745894059913,470.0,0.00038356,30]
[359288652,1745894060124,615.96,0.00038356,30]
[359288653,1745894061675,470.0,0.00038356,30]
[359288654,1745894063588,544.08,0.00038356,30]
[359288655,1745894064184,470.0,0.00038356,30]
[359288656,1745894064517,470.0,0.00038356,30]
[359288657,1745894066430,470.0,0.00038356,30]
[359288658,1745894068533,470.0,0.00038356,30]
[359288659,1745894068883,470.0,0.00038356,30]
[359288660,1745894069056,470.0,0.00038356,30]
[359288661,1745894069193,581.98,0.00038356,30]
[359288662,1745894070947,470.0,0.00038356,30]
[359288663,1745894071014,600.19,0.00038356,30]
[359288664,1745894072316,270.98504639,0.00038356,30]
[359288665,1745894073412,470.0,0.00038356,30]
[359288666,1745894073930,470.0,0.00038356,30]
[359288667,1745894073973,470.0,0.00038356,30]
[359288668,1745894074510,470.0,0.00038356,30]
[359288669,1745894074659,470.0,0.00038356,30]
[359288670,1745894075889,470.0,0.00038356,30]
[359288671,1745894076836,470.0,0.00038356,30]
[359288672,1745894077098,510.1,0.00038356,30]
[359288673,1745894077502,470.0,0.00038356,30]
[359288674,1745894078467,470.0,0.00038356,30]
[359288675,1745894078862,470.0,0.00038356,30]
[359288676,1745894079221,470.0,0.00038356,30]
[359288677,1745894079548,3792.38,0.00038356,30]
[359288678,1745894079654,561.34,0.00038356,30]
[359288679,1745894080105,470.0,0.00038356,30]
[359288680,1745894081193,470.0,0.00038356,30]
[359288681,1745894082210,381.0751319,0.00038356,30]
[359288682,1745894082443,470.0,0.00038356,30]
[359288683,1745894084375,470.0,0.00038356,30]
[359288684,1745894084715,470.0,0.00038356,30]
[359288685,1745894084983,470.0,0.00038356,30]
[359288686,1745894086540,470.0,0.00038356,30]
[359288687,1745894087039,470.0,0.00038356,30]
[359288688,1745894087362,470.0,0.00038356,30]
[359288689,1745894087403,3079.16,0.00038356,30]
[359288690,1745894087640,470.0,0.00038356,30]
[359288691,1745894088382,470.0,0.00038356,30]
[359288692,1745894088464,510.23,0.00038356,30]
[359288693,1745894088932,560.4,0.00038356,30]
[359288694,1745894089011,470.0,0.00038356,30]
[359288695,1745894089950,470.0,0.00038356,30]
[359288696,1745894090433,618.66,0.00038356,30]
[359288697,1745894091772,470.0,0.00038356,30]
[359288698,1745894092354,470.0,0.00038356,30]
[359288699,1745894092834,12031.49,0.00038356,30]
[359288700,1745894095503,470.0,0.00038356,30]
[359288701,1745894095789,1177.37,0.00038356,30]
[359288702,1745894097301,470.0,0.00038356,30]
[359288703,1745894099013,470.0,0.00038356,30]
[359288704,1745894099215,470.0,0.00038356,30]
[359288705,1745894099646,470.0,0.00038356,30]
[359288706,1745894100175,470.0,0.00038356,30]
[359288707,1745894101696,510.67,0.00038356,30]
[359288708,1745894102564,470.0,0.00038356,30]
[359288709,1745894102612,470.0,0.00038356,30]
[359288710,1745894103742,470.0,0.00038356,30]
[359288711,1745894103868,470.0,0.00038356,30]
[359288712,1745894105751,10578.81,0.00038356,30]
[359288713,1745894106031,470.0,0.00038356,30]
[359288714,1745894106279,470.0,0.00038356,30]
[359288715,1745894106359,470.0,0.00038356,30]
[359288716,1745894106502,470.0,0.00038356,30]
[359288717,1745894107661,470.0,0.00038356,30]
[359288718,1745894109942,470.0,0.00038356,30]
[359288719,1745894110304,470.0,0.00038356,30]
[359288720,1745894110342,470.0,0.00038356,30]
[359288721,1745894113239,470.0,0.00038356,30]
[359288722,1745894113855,470.0,0.00038356,30]
[359288723,1745894115849,470.0,0.00038356,30]